fUSD/lending_fUSD_20251123
["ID","MTS","AMOUNT","RATE_DAILY","PERIOD"]
[394753008,1763928656316,-500.0,0.0003863,8]
[394753009,1763928656325,-500.0,0.0003863,8]
[394753010,1763928656335,-517.31973521,0.0003863,8]
[394753011,1763928656344,-500.0,0.0003863,8]
[394753012,1763928656353,-769.31,0.0003863,8]
[394753013,1763928656362,-500.0,0.0003863,8]
[394753014,1763928656371,-500.0,0.0003863,8]
[394753015,1763928656380,-500.0,0.0003863,8]
[394753016,1763928656389,-500.0,0.0003863,8]
[394753017,1763928656398,-415.65296654,0.0003863,8]
[394753018,1763928656408,-500.0,0.0003863,8]
[394753019,1763928656417,-500.0,0.0003863,8]
[394753020,1763928656426,-568.14,0.0003863,8]
[394753021,1763928656436,-500.0,0.0003863,8]
[394753022,1763928656445,-500.0,0.0003863,8]
[394753023,1763928656454,-500.0,0.0003863,8]
[394753024,1763928656463,-500.0,0.0003863,8]
[394753025,1763928656472,-500.0,0.0003863,8]
[394753026,1763928656481,-500.0,0.0003863,8]
[394753027,1763928656490,-500.0,0.0003863,8]
[394753028,1763928656499,-500.0,0.0003863,8]
[394753029,1763928656508,-500.0,0.0003863,8]
[394753030,1763928656517,-1007.37396773,0.0003863,120]
[394753031,1763928656526,-500.0,0.0003863,8]
[394753032,1763928656535,-500.0,0.0003863,8]
[394753033,1763928656545,-500.0,0.0003863,8]
[394753034,1763928656554,-500.0,0.0003863,8]
[394753035,1763928656567,-529.93,0.0003863,8]
[394753036,1763928656575,-545.92,0.0003863,8]
[394753037,1763928656584,-517.18835265,0.0003863,8]
[394753038,1763928656594,-515.93910646,0.0003863,8]
[394753039,1763928656602,-500.0,0.0003863,8]
[394753040,1763928656611,-500.0,0.0003863,8]
[394753041,1763928656620,-500.0,0.0003863,8]
[394753042,1763928656629,-500.0,0.0003863,8]
[394753043,1763928656638,-756.18,0.0003863,8]
[394753044,1763928656647,-500.0,0.0003863,8]
[394753045,1763928656658,-505.3719363,0.0003863,8]
[394753046,1763928656667,-500.0,0.0003863,8]
[394753047,1763928656677,-500.0,0.0003863,8]
[394753048,1763928656686,-500.0,0.0003863,8]
[394753049,1763928656695,-500.0,0.0003863,8]
[394753050,1763928656704,-151.0,0.0003863,120]
[394753051,1763928656714,-500.0,0.0003863,8]
[394753052,1763928656723,-873.29,0.0003863,8]
[394753053,1763928656732,-151.0,0.0003863,120]
[394753054,1763928656742,-500.0,0.0003863,8]
[394753055,1763928656751,-500.0,0.0003863,8]
[394753056,1763928656760,-151.0,0.0003863,120]
[394753057,1763928656769,-500.0,0.0003863,8]
[394753058,1763928656778,-748.87,0.0003863,8]
[394753059,1763928656787,-632.0,0.0003863,8]
[394753060,1763928656796,-500.0,0.0003863,8]
[394753061,1763928656805,-592.29,0.0003863,8]
[394753062,1763928656814,-500.0,0.0003863,8]
[394753063,1763928656823,-903.72,0.0003863,8]
[394753064,1763928656832,-500.0,0.0003863,8]
[394753065,1763928656841,-151.0,0.0003863,120]
[394753066,1763928656850,-491.13279215,0.0003863,8]
[394753067,1763928656859,-500.0,0.0003863,8]
[394753068,1763928656868,-500.0,0.0003863,8]
[394753069,1763928656877,-201.11121,0.0003863,120]
[394753070,1763928656886,-500.0,0.0003863,8]
[394753071,1763928656895,-500.0,0.0003863,8]
[394753072,1763928656905,-154.339724,0.0003863,120]
[394753073,1763928656914,-500.0,0.0003863,8]
[394753074,1763928656923,-500.0,0.0003863,8]
[394753075,1763928656933,-500.0,0.0003863,8]
[394753076,1763928656942,-500.0,0.0003863,8]
[394753077,1763928656951,-500.0,0.0003863,8]
[394753078,1763928656960,-570.93,0.0003863,8]
[394753079,1763928656969,-300.0,0.0003863,2]
[394753080,1763928656978,-1169.13,0.0003863,8]
[394753081,1763928656987,-151.0,0.0003863,120]
[394753082,1763928656996,-727.68,0.0003863,8]
[394753083,1763928657005,-500.0,0.0003863,8]
[394753084,1763928657015,-500.0,0.0003863,8]
[394753085,1763928657024,-151.0,0.0003863,120]
[394753086,1763928657033,-500.0,0.0003863,8]
[394753087,1763928657043,-180.13863971,0.0003863,8]
[394753088,1763928657052,-285.430702,0.0003863,8]
[394753089,1763928657061,-500.0,0.0003863,8]
[394753090,1763928657070,-417.21227023,0.0003863,8]
[394753091,1763928657079,-506.884195,0.0003863,8]
[394753092,1763928657088,-500.0,0.0003863,8]
[394753093,1763928657098,-838.97,0.0003863,8]
[394753094,1763928657107,-598.74,0.0003863,8]
[394753095,1763928657116,-500.0,0.0003863,8]
[394753096,1763928657125,-500.0,0.0003863,8]
[394753097,1763928657134,-297.0783334,0.0003863,8]
[394753098,1763928657143,-151.0,0.0003863,90]
[394753099,1763928657151,-659.2,0.0003863,8]
[394753100,1763928657160,-500.0,0.0003863,8]
[394753101,1763928657169,-500.0,0.0003863,8]
[394753102,1763928657178,-500.0,0.0003863,8]
[394753103,1763928657187,-500.0,0.0003863,8]
[394753104,1763928657196,-474.6304201,0.0003863,8]
[394753105,1763928657205,-441.51678871,0.0003863,8]
[394753106,1763928657214,-500.0,0.0003863,8]
[394753107,1763928657223,-500.0,0.0003863,8]
[394753108,1763928657232,-500.0,0.0003863,8]
[394753109,1763928657241,-500.0,0.0003863,8]
[394753110,1763928657254,-500.0,0.0003863,8]
[394753111,1763928657264,-500.0,0.0003863,8]
[394753112,1763928657272,-500.0,0.0003863,8]
[394753113,1763928657281,-641.01123465,0.0003863,8]
[394753114,1763928657291,-500.0,0.0003863,8]
[394753115,1763928657300,-500.0,0.0003863,8]
[394753116,1763928657308,-500.0,0.0003863,8]
[394753117,1763928657321,-504.37,0.0003863,8]
[394753118,1763928657331,-500.0,0.0003863,8]
[394753119,1763928657340,-500.0,0.0003863,8]
[394753120,1763928657349,-500.0,0.0003863,8]
[394753121,1763928657358,-638.96,0.0003863,8]
[394753122,1763928657367,-500.0,0.0003863,8]
[394753123,1763928657376,-500.0,0.0003863,8]
[394753124,1763928657385,-500.0,0.0003863,8]
[394753125,1763928657394,-151.0,0.0003863,120]
[394753126,1763928657403,-500.0,0.0003863,8]
[394753127,1763928657412,-500.0,0.0003863,8]
[394753128,1763928657422,-151.0,0.0003863,120]
[394753129,1763928657431,-500.0,0.0003863,8]
[394753130,1763928657441,-425.001546,0.0003863,8]
[394753131,1763928657451,-500.0,0.0003863,8]
[394753132,1763928657460,-500.0,0.0003863,8]
[394753133,1763928657469,-500.0,0.0003863,8]
[394753134,1763928657479,-500.0,0.0003863,8]
[394753135,1763928657490,-288.22134738,0.0003863,8]
[394753136,1763928657501,-500.0,0.0003863,8]
[394753137,1763928657511,-500.0,0.0003863,8]
[394753138,1763928657523,-500.0,0.0003863,8]
[394753139,1763928657533,-500.0,0.0003863,8]
[394753140,1763928657543,-500.0,0.0003863,8]
[394753141,1763928657553,-500.0,0.0003863,8]
[394753142,1763928657563,-1084.35,0.0003863,8]
[394753143,1763928657572,-500.0,0.0003863,8]
[394753144,1763928657583,-532.47,0.0003863,8]
[394753145,1763928657593,-151.0,0.0003863,120]
[394753146,1763928657603,-577.83,0.0003863,8]
[394753147,1763928657613,-500.0,0.0003863,8]
[394753148,1763928657623,-500.0,0.0003863,8]
[394753149,1763928657633,-646.44297222,0.0003863,8]
[394753150,1763928657643,-500.0,0.0003863,8]
[394753151,1763928657652,-271.08756694,0.0003863,8]
[394753152,1763928657667,-500.0,0.0003863,8]
[394753153,1763928657677,-500.0,0.0003863,8]
[394753154,1763928657686,-578.59,0.0003863,8]
[394753155,1763928657695,-500.0,0.0003863,8]
[394753156,1763928657706,-500.0,0.0003863,8]
[394753157,1763928657715,-500.0,0.0003863,8]
[394753158,1763928657726,-500.0,0.0003863,8]
[394753159,1763928657736,-500.0,0.0003863,8]
[394753160,1763928657745,-500.0,0.0003863,8]
[394753161,1763928657755,-500.0,0.0003863,8]
[394753162,1763928657764,-500.0,0.0003863,8]
[394753163,1763928657774,-500.0,0.0003863,8]
[394753164,1763928657783,-500.0,0.0003863,8]
[394753165,1763928657792,-500.0,0.0003863,8]
[394753166,1763928657801,-500.0,0.0003863,8]
[394753167,1763928657810,-500.0,0.0003863,8]
[394753168,1763928657819,-241.17889824,0.0003863,8]
[394753169,1763928657829,-504.9,0.0003863,8]
[394753170,1763928657838,-1000.0,0.0003863,8]
[394753171,1763928657847,-500.0,0.0003863,8]
[394753172,1763928657856,-663.95,0.0003863,8]
[394753173,1763928657865,-500.0,0.0003863,8]
[394753174,1763928657874,-209.56852758,0.0003863,8]
[394753175,1763928657883,-569.42,0.0003863,8]
[394753176,1763928657892,-505.71324314,0.0003863,8]
[394753177,1763928657902,-568.15,0.0003863,8]
[394753178,1763928657912,-500.0,0.0003863,8]
[394753179,1763928657922,-500.0,0.0003863,8]
[394753180,1763928657931,-500.0,0.0003863,8]
[394753181,1763928657939,-500.0,0.0003863,8]
[394753182,1763928657949,-500.0,0.0003863,8]
[394753183,1763928657958,-500.0,0.0003863,8]
[394753184,1763928657967,-423.85587627,0.0003863,8]
[394753185,1763928657976,-500.0,0.0003863,8]
[394753186,1763928657985,-500.0,0.0003863,8]
[394753187,1763928657995,-368.53461531,0.0003863,8]
[394753188,1763928658004,-500.0,0.0003863,8]
[394753189,1763928658013,-500.0,0.0003863,8]
[394753190,1763928658022,-500.0,0.0003863,8]
[394753191,1763928658032,-500.0,0.0003863,8]
[394753192,1763928658041,-500.0,0.0003863,8]
[394753193,1763928658050,-500.0,0.0003863,8]
[394753194,1763928658059,-590.63,0.0003863,8]
[394753195,1763928658068,-500.0,0.0003863,8]
[394753196,1763928658077,-500.0,0.0003863,8]
[394753197,1763928658086,-500.0,0.0003863,8]
[394753198,1763928658098,-500.0,0.0003863,8]
[394753199,1763928658108,-500.0,0.0003863,8]
[394753200,1763928658117,-500.0,0.0003863,8]
[394753201,1763928658126,-500.0,0.0003863,8]
[394753202,1763928658135,-601.13,0.0003863,8]
[394753203,1763928658144,-500.0,0.0003863,8]
[394753204,1763928658154,-500.0,0.0003863,8]
[394753205,1763928658163,-500.0,0.0003863,8]
[394753206,1763928658172,-500.0,0.0003863,8]
[394753207,1763928658181,-500.0,0.0003863,8]
[394753208,1763928658190,-500.0,0.0003863,8]
[394753209,1763928658199,-677.57,0.0003863,8]
[394753210,1763928658209,-500.0,0.0003863,8]
[394753211,1763928658218,-541.44,0.0003863,8]
[394753212,1763928658228,-151.0,0.0003863,120]
[394753213,1763928658237,-500.0,0.0003863,8]
[394753214,1763928658247,-162.983005,0.0003863,120]
[394753215,1763928658264,-162.983005,0.0003863,120]
[394753216,1763928658273,-500.0,0.0003863,8]
[394753217,1763928658283,-162.983005,0.0003863,120]
[394753218,1763928658293,-162.983005,0.0003863,120]
[394753219,1763928658302,-500.0,0.0003863,8]
[394753220,1763928658311,-162.983005,0.0003863,120]
[394753221,1763928658320,-515.54,0.0003863,8]
[394753222,1763928658331,-924.9,0.0003863,8]
[394753223,1763928658340,-162.983005,0.0003863,120]
[394753224,1763928658349,-500.0,0.0003863,8]
[394753225,1763928658358,-162.983005,0.0003863,120]
[394753226,1763928658367,-543.16,0.0003863,8]
[394753227,1763928658376,-500.0,0.0003863,8]
[394753228,1763928658384,-162.983005,0.0003863,120]
[394753229,1763928658394,-500.0,0.0003863,8]
[394753230,1763928658403,-500.0,0.0003863,8]
[394753231,1763928658415,-649.35,0.0003863,8]
[394753232,1763928658424,-500.0,0.0003863,8]
[394753233,1763928658433,-545.71,0.0003863,8]
[394753234,1763928658442,-500.0,0.0003863,8]
[394753235,1763928658451,-500.0,0.0003863,8]
[394753236,1763928658460,-547.26,0.0003863,8]
[394753237,1763928658469,-504.89,0.0003863,8]
[394753238,1763928658478,-600.0,0.0003863,8]
[394753239,1763928658488,-500.0,0.0003863,8]
[394753240,1763928658497,-500.0,0.0003863,8]
[394753241,1763928658507,-500.0,0.0003863,8]
[394753242,1763928658516,-572.88,0.0003863,8]
[394753243,1763928658525,-465.62069477,0.0003863,8]
[394753244,1763928658534,-616.37,0.0003863,8]
[394753245,1763928658543,-500.0,0.0003863,8]
[394753246,1763928658552,-500.0,0.0003863,8]
[394753247,1763928658561,-500.0,0.0003863,8]
[394753248,1763928658571,-500.0,0.0003863,8]
[394753249,1763928658580,-500.0,0.0003863,8]
[394753250,1763928658589,-544.3,0.0003863,8]
[394753251,1763928658599,-718.84,0.0003863,8]
[394753252,1763928658608,-500.0,0.0003863,8]
[394753253,1763928658617,-500.0,0.0003863,8]
[394753254,1763928658627,-500.0,0.0003863,8]
[394753255,1763928658636,-605.38,0.0003863,8]
[394753256,1763928658645,-500.0,0.0003863,8]
[394753257,1763928658655,-523.82,0.0003863,8]
[394753258,1763928658664,-500.0,0.0003863,8]
[394753259,1763928658673,-628.52,0.0003863,8]
[394753260,1763928658682,-500.0,0.0003863,8]
[394753261,1763928658691,-500.0,0.0003863,8]
[394753262,1763928658701,-500.0,0.0003863,8]
[394753263,1763928658710,-503.0908467,0.0003863,8]
[394753264,1763928658719,-500.0,0.0003863,8]
[394753265,1763928658728,-549.10756939,0.0003863,8]
[394753266,1763928658737,-500.0,0.0003863,8]
[394753267,1763928658746,-211.967788,0.0003863,120]
[394753268,1763928658755,-211.967788,0.0003863,120]
[394753269,1763928658764,-500.0,0.0003863,8]
[394753270,1763928658773,-211.967788,0.0003863,120]
[394753271,1763928658782,-211.967788,0.0003863,120]
[394753272,1763928658791,-211.967788,0.0003863,120]
[394753273,1763928658800,-211.967788,0.0003863,120]
[394753274,1763928658810,-500.0,0.0003863,8]
[394753275,1763928658819,-211.967788,0.0003863,120]
[394753276,1763928658828,-211.967788,0.0003863,120]
[394753277,1763928658837,-667.74,0.0003863,8]
[394753278,1763928658845,-500.0,0.0003863,8]
[394753279,1763928658854,-500.0,0.0003863,8]
[394753280,1763928658863,-500.0,0.0003863,8]
[394753281,1763928658873,-500.0,0.0003863,8]
[394753282,1763928658881,-500.0,0.0003863,8]
[394753283,1763928658890,-500.0,0.0003863,8]
[394753284,1763928658900,-500.0,0.0003863,8]
[394753285,1763928658909,-500.0,0.0003863,8]
[394753286,1763928658918,-500.0,0.0003863,8]
[394753287,1763928658926,-500.0,0.0003863,8]
[394753288,1763928658935,-500.0,0.0003863,8]
[394753289,1763928658944,-502.0939095,0.0003863,8]
[394753290,1763928658953,-500.0,0.0003863,8]
[394753291,1763928658962,-151.0,0.0003863,28]
[394753292,1763928658971,-151.0,0.0003863,28]
[394753293,1763928658980,-500.0,0.0003863,8]
[394753294,1763928658988,-982.47,0.0003863,8]
[394753295,1763928658997,-731.32,0.0003863,8]
[394753296,1763928659006,-500.0,0.0003863,8]
[394753297,1763928659015,-151.0,0.0003863,28]
[394753298,1763928659024,-151.0,0.0003863,28]
[394753299,1763928659033,-151.0,0.0003863,28]
[394753300,1763928659043,-151.0,0.0003863,28]
[394753301,1763928659052,-770.19,0.0003863,8]
[394753302,1763928659060,-500.0,0.0003863,8]
[394753303,1763928659070,-268.493433,0.0003863,28]
[394753304,1763928659078,-500.0,0.0003863,8]
[394753305,1763928659087,-504.33427885,0.0003863,8]
[394753306,1763928659096,-517.64533802,0.0003863,8]
[394753307,1763928659105,-500.0,0.0003863,8]
[394753308,1763928659114,-151.0,0.0003863,120]
[394753309,1763928659123,-500.0,0.0003863,8]
[394753310,1763928659132,-500.0,0.0003863,8]
[394753311,1763928659141,-500.0,0.0003863,8]
[394753312,1763928659150,-151.0,0.0003863,120]
[394753313,1763928659159,-234.803595,0.0003863,120]
[394753314,1763928659168,-500.0,0.0003863,8]
[394753315,1763928659178,-182.43521127,0.0003863,8]
[394753316,1763928659187,-500.0,0.0003863,8]
[394753317,1763928659196,-500.0,0.0003863,8]
[394753318,1763928659205,-500.0,0.0003863,8]
[394753319,1763928659215,-504.55452204,0.0003863,8]
[394753320,1763928659224,-500.0,0.0003863,8]
[394753321,1763928659233,-318.41526136,0.0003863,8]
[394753322,1763928659243,-500.0,0.0003863,8]
[394753323,1763928659254,-500.0,0.0003863,8]
[394753324,1763928659263,-500.0,0.0003863,8]
[394753325,1763928659273,-500.0,0.0003863,8]
[394753326,1763928659282,-659.88,0.0003863,8]
[394753327,1763928659293,-500.0,0.0003863,8]
[394753328,1763928659302,-500.0,0.0003863,8]
[394753329,1763928659312,-500.0,0.0003863,8]
[394753330,1763928659321,-151.0,0.0003863,120]
[394753331,1763928659331,-500.0,0.0003863,8]
[394753332,1763928659340,-151.0,0.0003863,120]
[394753333,1763928659350,-151.0,0.0003863,120]
[394753334,1763928659359,-500.0,0.0003863,8]
[394753335,1763928659368,-500.0,0.0003863,8]
[394753336,1763928659377,-500.0,0.0003863,8]
[394753337,1763928659386,-500.0,0.0003863,8]
[394753338,1763928659396,-500.0,0.0003863,8]
[394753339,1763928659405,-582.75,0.0003863,8]
[394753340,1763928659414,-525.94314541,0.0003863,8]
[394753341,1763928659423,-500.0,0.0003863,8]
[394753342,1763928659432,-500.0,0.0003863,8]
[394753343,1763928659441,-500.0,0.0003863,8]
[394753344,1763928659451,-503.04,0.0003863,8]
[394753345,1763928659461,-500.0,0.0003863,8]
[394753346,1763928659470,-702.03,0.0003863,8]
[394753347,1763928659479,-811.08,0.0003863,8]
[394753348,1763928659488,-500.0,0.0003863,8]
[394753349,1763928659499,-729.25,0.0003863,8]
[394753350,1763928659508,-500.0,0.0003863,8]
[394753351,1763928659517,-500.0,0.0003863,8]
[394753352,1763928659526,-500.0,0.0003863,8]
[394753353,1763928659535,-500.0,0.0003863,8]
[394753354,1763928659545,-500.0,0.0003863,8]
[394753355,1763928659554,-500.0,0.0003863,8]
[394753356,1763928659563,-600.72,0.0003863,8]
[394753357,1763928659573,-500.0,0.0003863,8]
[394753358,1763928659582,-500.0,0.0003863,8]
[394753359,1763928659591,-524.88053115,0.0003863,8]
[394753360,1763928659601,-1799.02,0.0003863,8]
[394753361,1763928659610,-500.0,0.0003863,8]
[394753362,1763928659619,-500.0,0.0003863,8]
[394753363,1763928659628,-780.31,0.0003863,8]
[394753364,1763928659637,-500.0,0.0003863,8]
[394753365,1763928659647,-500.0,0.0003863,8]
[394753366,1763928659656,-500.0,0.0003863,8]
[394753367,1763928659666,-683.83,0.0003863,8]
[394753368,1763928659675,-905.7,0.0003863,8]
[394753369,1763928659683,-500.0,0.0003863,8]
[394753370,1763928659693,-500.0,0.0003863,8]
[394753371,1763928659702,-500.0,0.0003863,8]
[394753372,1763928659711,-500.0,0.0003863,8]
[394753373,1763928659720,-531.24,0.0003863,8]
[394753374,1763928659730,-500.0,0.0003863,8]
[394753375,1763928659740,-500.0,0.0003863,8]
[394753376,1763928659750,-519.52,0.0003863,8]
[394753377,1763928659759,-704.57,0.0003863,8]
[394753378,1763928659768,-396.5516284,0.0003863,8]
[394753379,1763928659778,-865.77,0.0003863,8]
[394753380,1763928659788,-500.0,0.0003863,8]
[394753381,1763928659797,-809.97,0.0003863,8]
[394753382,1763928659807,-500.0,0.0003863,8]
[394753383,1763928659816,-1131.6,0.0003863,8]
[394753384,1763928659826,-500.0,0.0003863,8]
[394753385,1763928659835,-500.0,0.0003863,8]
[394753386,1763928659844,-500.0,0.0003863,8]
[394753387,1763928659854,-500.0,0.0003863,8]
[394753388,1763928659863,-500.0,0.0003863,8]
[394753389,1763928659872,-956.13,0.0003863,8]
[394753390,1763928659882,-553.68,0.0003863,8]
[394753391,1763928659892,-1855.58,0.0003863,8]
[394753392,1763928659901,-245.17629852,0.0003863,8]
[394753393,1763928659911,-500.0,0.0003863,8]
[394753394,1763928659921,-500.0,0.0003863,8]
[394753395,1763928659930,-500.0,0.0003863,8]
[394753396,1763928659940,-524.98,0.0003863,8]
[394753397,1763928659950,-632.75,0.0003863,8]
[394753398,1763928659960,-874.38,0.0003863,8]
[394753399,1763928659970,-500.0,0.0003863,8]
[394753400,1763928659979,-500.0,0.0003863,8]
[394753401,1763928659989,-500.0,0.0003863,8]
[394753402,1763928659998,-500.0,0.0003863,8]
[394753403,1763928660008,-500.0,0.0003863,8]
[394753404,1763928660018,-500.0,0.0003863,8]
[394753405,1763928660028,-500.0,0.0003863,8]
[394753406,1763928660038,-599.6,0.0003863,8]
[394753407,1763928660049,-500.0,0.0003863,8]
[394753408,1763928660060,-500.0,0.0003863,8]
[394753409,1763928660071,-500.0,0.0003863,8]
[394753410,1763928660080,-500.0,0.0003863,8]
[394753411,1763928660090,-500.0,0.0003863,8]
[394753412,1763928660100,-930.75,0.0003863,8]
[394753413,1763928660109,-500.0,0.0003863,8]
[394753414,1763928660119,-586.51,0.0003863,8]
[394753415,1763928660129,-527.96,0.0003863,8]
[394753416,1763928660139,-548.95,0.0003863,8]
[394753417,1763928660148,-1160.11,0.0003863,8]
[394753418,1763928660158,-500.0,0.0003863,8]
[394753419,1763928660168,-500.0,0.0003863,8]
[394753420,1763928660177,-500.0,0.0003863,8]
[394753421,1763928660187,-500.0,0.0003863,8]
[394753422,1763928660196,-500.0,0.0003863,8]
[394753423,1763928660206,-500.0,0.0003863,8]
[394753424,1763928660216,-502.64,0.0003863,8]
[394753425,1763928660226,-500.0,0.0003863,8]
[394753426,1763928660236,-933.6,0.0003863,8]
[394753427,1763928660245,-756.24,0.0003863,8]
[394753428,1763928660257,-500.0,0.0003863,8]
[394753429,1763928660268,-500.0,0.0003863,8]
[394753430,1763928660277,-500.0,0.0003863,8]
[394753431,1763928660287,-537.72,0.0003863,8]
[394753432,1763928660299,-500.0,0.0003863,8]
[394753433,1763928660309,-500.0,0.0003863,8]
[394753434,1763928660319,-500.0,0.0003863,8]
[394753435,1763928660330,-500.0,0.0003863,8]
[394753436,1763928660341,-1147.88,0.0003863,8]
[394753437,1763928660350,-500.0,0.0003863,8]
[394753438,1763928660360,-500.0,0.0003863,8]
[394753439,1763928660369,-500.0,0.0003863,8]
[394753440,1763928660380,-500.0,0.0003863,8]
[394753441,1763928660390,-500.0,0.0003863,8]
[394753442,1763928660400,-1173.65,0.0003863,8]
[394753443,1763928660411,-500.0,0.0003863,8]
[394753444,1763928660420,-500.0,0.0003863,8]
[394753445,1763928660431,-884.32,0.0003863,8]
[394753446,1763928660441,-500.0,0.0003863,8]
[394753447,1763928660452,-500.0,0.0003863,8]
[394753448,1763928660461,-500.0,0.0003863,8]
[394753449,1763928660471,-629.08,0.0003863,8]
[394753450,1763928660481,-525.51794124,0.0003863,8]
[394753451,1763928660490,-274.96712084,0.0003863,8]
[394753452,1763928660500,-500.0,0.0003863,8]
[394753453,1763928660510,-500.0,0.0003863,8]
[394753454,1763928660520,-715.57,0.0003863,8]
[394753455,1763928660529,-567.09,0.0003863,8]
[394753456,1763928660539,-418.51099093,0.0003863,8]
[394753457,1763928660549,-763.62,0.0003863,8]
[394753458,1763928660559,-500.0,0.0003863,8]
[394753459,1763928660568,-500.0,0.0003863,8]
[394753460,1763928660578,-500.0,0.0003863,8]
[394753461,1763928660588,-500.0,0.0003863,8]
[394753462,1763928660598,-768.23,0.0003863,8]
[394753463,1763928660608,-500.0,0.0003863,8]
[394753464,1763928660618,-543.27147222,0.0003863,8]
[394753465,1763928660627,-500.0,0.0003863,8]
[394753466,1763928660637,-597.40461567,0.0003863,8]
[394753467,1763928660647,-500.0,0.0003863,8]
[394753468,1763928660658,-431.648201,0.0003863,30]
[394753469,1763928660668,-679.42,0.0003863,8]
[394753470,1763928660677,-500.0,0.0003863,8]
[394753471,1763928660687,-500.0,0.0003863,8]
[394753472,1763928660697,-500.0,0.0003863,8]
[394753473,1763928660706,-431.648201,0.0003863,30]
[394753474,1763928660715,-500.0,0.0003863,8]
[394753475,1763928660725,-500.0,0.0003863,8]
[394753476,1763928660735,-651.21,0.0003863,8]
[394753477,1763928660745,-372.901035,0.0003863,120]
[394753478,1763928660755,-500.0,0.0003863,8]
[394753479,1763928660764,-431.648201,0.0003863,30]
[394753480,1763928660774,-372.901035,0.0003863,120]
[394753481,1763928660783,-500.0,0.0003863,8]
[394753482,1763928660792,-500.0,0.0003863,8]
[394753483,1763928660802,-431.648201,0.0003863,30]
[394753484,1763928660812,-372.901035,0.0003863,120]
[394753485,1763928660822,-500.0,0.0003863,8]
[394753486,1763928660831,-1875.73,0.0003863,8]
[394753487,1763928660840,-500.0,0.0003863,8]
[394753488,1763928660849,-500.0,0.0003863,8]
[394753489,1763928660859,-372.901035,0.0003863,120]
[394753490,1763928660869,-500.0,0.0003863,8]
[394753491,1763928660878,-946.01,0.0003863,8]
[394753492,1763928660888,-833.66,0.0003863,8]
[394753493,1763928660897,-500.0,0.0003863,8]
[394753494,1763928660907,-500.0,0.0003863,8]
[394753495,1763928660917,-586.91,0.0003863,8]
[394753496,1763928660927,-500.0,0.0003863,8]
[394753497,1763928660936,-500.0,0.0003863,8]
[394753498,1763928660947,-503.19,0.0003863,8]
[394753499,1763928660956,-500.0,0.0003863,8]
[394753500,1763928660966,-809.87,0.0003863,8]
[394753501,1763928660976,-500.0,0.0003863,8]
[394753502,1763928660986,-500.0,0.0003863,8]
[394753503,1763928660996,-318.46984505,0.0003863,8]
[394753504,1763928661006,-500.0,0.0003863,8]
[394753505,1763928661016,-500.0,0.0003863,8]
[394753506,1763928661028,-873.33,0.0003863,8]
[394753507,1763928661038,-500.0,0.0003863,8]